[Event "2nd Thailand Pattaya Open 2019"]
[Site "Pattaya"]
[Date "2019.10.25"]
[Round "2.5"]
[White "Wiwatanadate, Poompong"]
[Black "Coenen, Michael"]
[Result "1-0"]
[ECO "B15"]
[WhiteElo "2043"]
[BlackElo "2365"]
[Annotator "ChessBase"]
[PlyCount "67"]
[EventDate "2019.10.23"]
[EventType "swiss"]
[EventCountry "THA"]
[SourceTitle "playchess.com"]
[Source "ChessBase"]
[SourceQuality "1"]
[TimeControl "5400+30"]

1. e4 c6 2. Nc3 d5 3. Nf3 g6 4. d4 dxe4 5. Nxe4 Bg7 6. Bc4 Nh6 7. c3 O-O 8. Bf4 Nf5 9. Bb3 Nd6 10. Ng3 Bg4 11. h3 Bxf3 12. Qxf3 a5 13. O-O-O a4 14. Bc2 Nd7 15. h4 Ra5 16. h5 e5 17. Be3 Nc4 18. Bd3 Nxe3 19. fxe3 Qf6 20. Qg4 Qf2 21. hxg6 a3 22. Rd2 axb2+ 23. Rxb2 Qxe3+ 24. Kc2 hxg6 25. Ne4 exd4 26. Rh3 Qg1 27. Qxd7 dxc3 28. Nxc3 Qxg2+ 29. Kb3 Qg5 30. Bc4 b5 31. Bxf7+ Rxf7 32. Qe8+ Bf8 33. Rbh2 Ra3+ {[%emt 0:21:23]} 34. Kb2 {[%emt 0:21:22]} 1-0

[Event "2nd Thailand Pattaya Open 2019"]
[Site "Pattaya"]
[Date "2019.10.25"]
[Round "2.6"]
[White "Arunnuntapanich, Tinnakrit"]
[Black "Stokke, Kjetil"]
[Result "1-0"]
[ECO "B44"]
[WhiteElo "2025"]
[BlackElo "2344"]
[Annotator "ChessBase"]
[PlyCount "57"]
[EventDate "2019.10.23"]
[EventType "swiss"]
[EventCountry "THA"]
[SourceTitle "playchess.com"]
[Source "ChessBase"]
[SourceQuality "1"]
[TimeControl "5400+30"]

1. e4 {[%emt 0:15:09]} c5 {[%emt 0:00:00]} 2. Nf3 {[%emt 0:00:48]} e6 {[%emt 1:31:00]} 3. d4 cxd4 4. Nxd4 Nf6 5. Bd3 Nc6 6. Be3 d5 7. exd5 Nxd4 {[%emt 0:00:00]} 8. Bxd4 {[%emt 0:05:49]} Qxd5 {[%emt 0:03:00]} 9. O-O Bd7 {[%emt 0:00:00]} 10. Be2 {[%emt 0:19:59]} e5 {[%emt 0:00:00]} 11. Bc3 {[%emt 0:05:28]} Qe6 {[%emt 0:00:00]} 12. Bf3 {[%emt 0:03:00]} O-O-O {[%emt 0:00:00]} 13. Re1 {[%emt 0:03:05]} Bc6 {[%emt 0:00:00]} 14. Nd2 {[%emt 0:04:41]} e4 {[%emt 0:00:00]} 15. Bxf6 {[%emt 0:03:11]} gxf6 {[%emt 0:00:00]} 16. Bg4 {[%emt 0:02:01]} f5 {[%emt 0:00:00]} 17. Bh3 {[%emt 0:00:07]} Kb8 {[%emt 0:00:00]} 18. Qe2 {[%emt 0:03:06]} Bc5 {[%emt 0:00:00]} 19. Nb3 {[%emt 0:04:22]} Bb6 {[%emt 0:00:00]} 20. Rad1 {[%emt 0:06:42]} Qf6 {[%emt 0:00:00]} 21. c4 {[%emt 0:08:25]} f4 {[%emt 0:00:00]} 22. c5 {[%emt 0:00:34]} Bc7 {[%emt 0:00:00]} 23. Qc2 {[%emt 0:05:08]} Rhg8 {[%emt 0:00:00]} 24. Qc3 {[%emt 0:01:04]} Be5 {[%emt 0:00:00]} 25. Qb4 {[%emt 0:00:36]} e3 {[%emt 0:00:00]} 26. Na5 {[%emt 0:04:58]} Rxg2+ {[%emt 0:00:00]} 27. Bxg2 {[%emt 0:00:52]} Rg8 {[%emt 0:00:00]} 28. Nxc6+ {[%emt 0:00:37]} Qxc6 {[%emt 0:00:00]} 29. Rd8+ {[%emt 0:00:08]} 1-0

[Event "2nd Thailand Pattaya Open 2019"]
[Site "Pattaya"]
[Date "2019.10.25"]
[Round "3.2"]
[White "Gomez, John Paul"]
[Black "Kananub, Warot"]
[Result "1/2-1/2"]
[ECO "A16"]
[WhiteElo "2433"]
[BlackElo "2206"]
[Annotator "ChessBase"]
[PlyCount "37"]
[EventDate "2019.10.23"]
[EventType "swiss"]
[EventCountry "THA"]
[SourceTitle "playchess.com"]
[Source "ChessBase"]
[SourceQuality "1"]
[TimeControl "5400+30"]

1. Nf3 {[%emt 0:00:00]} Nf6 {[%emt 0:00:00]} 2. c4 {[%emt 0:00:00]} g6 {[%emt 0:00:00]} 3. Nc3 {[%emt 0:00:00]} d5 {[%emt 0:00:00]} 4. cxd5 {[%emt 0:00:41]} Nxd5 {[%emt 0:00:00]} 5. e4 {[%emt 0:01:25]} Nxc3 {[%emt 0:00:00]} 6. dxc3 {[%emt 0:00:05]} Qxd1+ {[%emt 0:00:00]} 7. Kxd1 {[%emt 0:00:07]} f6 {[%emt 0:00:26]} 8. Bc4 {[%emt 0:00:54]} e5 {[%emt 0:00:16]} 9. Be3 {[%emt 0:00:17]} Nd7 {[%emt 0:00:06]} 10. a4 {[%emt 0:00:46]} a5 {[%emt 0:04:14]} 11. Ke2 {[%emt 0:00:38]} Bc5 {[%emt 0:00:11]} 12. Rhd1 {[%emt 0:00:53]} Bxe3 {[%emt 0:00:12]} 13. Kxe3 {[%emt 0:00:07]} Ke7 {[%emt 0:00:44]} 14. Ne1 {[%emt 0:02:51]} Nc5 {[%emt 0:12:25]} 15. Nd3 {[%emt 0:01:09]} Nxd3 {[%emt 0:01:44]} 16. Rxd3 {[%emt 0:00:12]} Bd7 {[%emt 0:05:15]} 17. f4 {[%emt 0:03:39]} exf4+ 18. Kxf4 {[%emt 0:01:16]} Rhd8 {[%emt 0:03:51]} 19. Rd4 {[%emt 0:03:03]} 1/2-1/2

[Event "2nd Thailand Pattaya Open 2019"]
[Site "Pattaya"]
[Date "2019.10.25"]
[Round "3.4"]
[White "Langreck, John"]
[Black "Villamayor, Buenaventura"]
[Result "0-1"]
[ECO "E61"]
[WhiteElo "2149"]
[BlackElo "2371"]
[Annotator "ChessBase"]
[PlyCount "78"]
[EventDate "2019.10.23"]
[EventType "swiss"]
[EventCountry "THA"]
[SourceTitle "playchess.com"]
[Source "ChessBase"]
[SourceQuality "1"]
[TimeControl "5400+30"]

1. Nf3 {[%emt 0:15:38]} g6 {[%emt 0:02:13]} 2. c4 {[%emt 0:00:50]} Bg7 {[%emt 0:00:34]} 3. d4 {[%emt 0:00:06]} d6 {[%emt 0:00:58]} 4. Nc3 {[%emt 0:00:16]} Bg4 {[%emt 0:00:48]} 5. e3 {[%emt 0:00:55]} Nc6 {[%emt 0:01:38]} 6. Be2 {[%emt 0:00:41]} Nf6 {[%emt 0:01:17]} 7. O-O {[%emt 0:00:34]} O-O {[%emt 0:00:15]} 8. b3 {[%emt 0:12:34]} Nd7 {[%emt 0:15:47]} 9. Bb2 {[%emt 0:02:33]} Bxf3 10. Bxf3 {[%emt 0:00:12]} e5 {[%emt 0:03:52]} 11. Bxc6 bxc6 {[%emt 0:04:04]} 12. dxe5 Bxe5 {[%emt 0:02:27]} 13. Na4 {[%emt 0:17:59]} f5 {[%emt 0:05:24]} 14. Qf3 {[%emt 0:04:09]} Bxb2 {[%emt 0:02:00]} 15. Nxb2 {[%emt 0:00:09]} Ne5 {[%emt 0:00:05]} 16. Qe2 {[%emt 0:01:28]} Qh4 {[%emt 0:03:53]} 17. g3 {[%emt 0:20:31]} Qh6 {[%emt 0:09:17]} 18. f3 {[%emt 0:04:53]} Rae8 {[%emt 0:02:39]} 19. Rae1 {[%emt 0:00:19]} Re7 {[%emt 0:05:56]} 20. Qd2 {[%emt 0:08:46]} Rfe8 {[%emt 0:01:54]} 21. Kg2 {[%emt 0:00:36]} Nf7 {[%emt 0:06:07]} 22. f4 {[%emt 0:00:24]} Qg7 {[%emt 0:01:19]} 23. Nd3 {[%emt 0:00:34]} Nd8 {[%emt 0:02:33]} 24. Nb4 {[%emt 0:01:10]} Re6 {[%emt 0:06:47]} 25. Re2 {[%emt 0:00:30]} Qd7 {[%emt 0:02:10]} 26. Rfe1 {[%emt 0:00:38]} Nb7 {[%emt 0:01:47]} 27. Nd3 {[%emt 0:00:58]} c5 {[%emt 0:01:19]} 28. Nf2 {[%emt 0:01:03]} Nd8 {[%emt 0:02:21]} 29. Kg1 {[%emt 0:01:52]} Nc6 {[%emt 0:00:36]} 30. Qd5 {[%emt 0:01:13]} Kf8 {[%emt 0:04:58]} 31. Kf1 {[%emt 0:00:16]} R8e7 {[%emt 0:03:02]} 32. h3 {[%emt 0:01:32]} Qe8 {[%emt 0:01:50]} 33. g4 {[%emt 0:00:27]} Nd4 {[%emt 0:00:46]} 34. exd4 {[%emt 0:00:15]} Rxe2 {[%emt 0:00:03]} 35. Rxe2 {[%emt 0:00:10]} Rxe2 {[%emt 0:00:04]} 36. gxf5 {[%emt 0:00:27]} Qe3 {[%emt 0:01:22]} 37. Qa8+ {[%emt 0:00:10]} Ke7 {[%emt 0:00:25]} 38. f6+ {[%emt 0:01:30]} Kd7 {[%emt 0:00:03]} 39. Ng4 {[%emt 0:00:25]} Re1+ {[%emt 0:06:57]} 0-1

[Event "2nd Thailand Pattaya Open 2019"]
[Site "Pattaya"]
[Date "2019.10.25"]
[Round "3.5"]
[White "Quizon, Daniel"]
[Black "Wiwatanadate, Poompong"]
[Result "1-0"]
[ECO "B15"]
[WhiteElo "2329"]
[BlackElo "2043"]
[Annotator "ChessBase"]
[PlyCount "116"]
[EventDate "2019.10.23"]
[EventType "swiss"]
[EventCountry "THA"]
[SourceTitle "playchess.com"]
[Source "ChessBase"]
[SourceQuality "1"]
[TimeControl "5400+30"]

1. e4 {[%emt 0:00:07]} c6 {[%emt 0:00:00]} 2. d4 {[%emt 0:00:10]} d5 {[%emt 0:00:00]} 3. Nd2 {[%emt 0:00:09]} dxe4 {[%emt 0:00:00]} 4. Nxe4 {[%emt 0:00:05]} Nf6 {[%emt 0:00:01]} 5. Ng3 {[%emt 0:01:16]} e5 {[%emt 0:00:11]} 6. Nf3 {[%emt 0:03:20]} exd4 {[%emt 0:00:10]} 7. Nxd4 {[%emt 0:03:35]} Bc5 {[%emt 0:00:09]} 8. Qe2+ {[%emt 0:01:28]} Be7 {[%emt 0:00:45]} 9. Be3 {[%emt 0:01:03]} O-O {[%emt 0:01:29]} 10. O-O-O {[%emt 0:00:19]} Qa5 {[%emt 0:02:02]} 11. Kb1 {[%emt 0:01:45]} Na6 {[%emt 0:05:36]} 12. Nb3 {[%emt 0:08:14]} Qc7 {[%emt 0:01:10]} 13. Nh5 {[%emt 0:07:21]} Qe5 {[%emt 0:14:01]} 14. Nxg7 {[%emt 0:05:16]} Ng4 {[%emt 0:08:28]} 15. Bd4 {[%emt 0:10:54]} Qxe2 16. Bxe2 {[%emt 0:00:01]} c5 {[%emt 0:01:02]} 17. Bc3 {[%emt 0:06:03]} Nxf2 {[%emt 0:02:02]} 18. Rde1 {[%emt 0:03:41]} Nxh1 {[%emt 0:04:03]} 19. Bxa6 {[%emt 0:00:13]} bxa6 {[%emt 0:18:27]} 20. Rxe7 {[%emt 0:00:19]} Rd8 {[%emt 0:00:04]} 21. a3 {[%emt 0:01:55]} Kf8 {[%emt 0:01:24]} 22. Bf6 {[%emt 0:12:28]} Rd1+ {[%emt 0:09:25]} 23. Ka2 {[%emt 0:00:14]} Bd7 {[%emt 0:00:05]} 24. Nxc5 {[%emt 0:01:15]} Bc6 {[%emt 0:01:00]} 25. Nce6+ {[%emt 0:08:21]} Kg8 {[%emt 0:00:16]} 26. Nc7 {[%emt 0:04:02]} Rc8 {[%emt 0:03:30]} 27. Nf5 {[%emt 0:01:11]} h5 {[%emt 0:05:55]} 28. Bc3 {[%emt 0:11:28]} Nf2 {[%emt 0:03:09]} 29. Nh6+ {[%emt 0:03:40]} Kh7 {[%emt 0:00:15]} 30. Rxf7+ {[%emt 0:00:43]} Kxh6 {[%emt 0:00:16]} 31. Rf6+ {[%emt 0:00:00]} Kh7 {[%emt 0:03:14]} 32. Rxc6 {[%emt 0:00:02]} Ne4 {[%emt 0:03:37]} 33. Be5 {[%emt 0:00:28]} Rd5 {[%emt 0:01:41]} 34. Re6 {[%emt 0:01:41]} Rd7 {[%emt 0:02:12]} 35. Bf4 {[%emt 0:00:16]} Nc5 {[%emt 0:00:31]} 36. Rh6+ {[%emt 0:01:31]} Kg7 {[%emt 0:01:15]} 37. Rc6 {[%emt 0:00:11]} Ne4 {[%emt 0:04:33]} 38. Ne6+ {[%emt 0:00:14]} Kf7 {[%emt 0:00:02]} 39. Rxc8 {[%emt 0:00:49]} Kxe6 {[%emt 0:00:01]} 40. Rc6+ {[%emt 0:00:28]} Kf5 {[%emt 0:00:10]} 41. Be3 {[%emt 0:00:29]} Rd1 {[%emt 0:01:05]} 42. Rxa6 {[%emt 0:00:15]} Re1 {[%emt 0:00:03]} 43. Ra5+ {[%emt 0:00:29]} Kg4 {[%emt 0:01:07]} 44. Bxa7 {[%emt 0:00:16]} Re2 {[%emt 0:00:04]} 45. h3+ {[%emt 0:00:25]} Kh4 {[%emt 0:00:43]} 46. Rf5 {[%emt 0:03:27]} Kg3 {[%emt 0:02:02]} 47. Rxh5 {[%emt 0:00:07]} Rxc2 {[%emt 0:00:08]} 48. Rh8 {[%emt 0:00:54]} Kxg2 {[%emt 0:01:42]} 49. h4 {[%emt 0:00:01]} Rd2 {[%emt 0:00:43]} 50. Rc8 {[%emt 0:01:06]} Kg3 {[%emt 0:00:22]} 51. h5 {[%emt 0:00:09]} Kg4 {[%emt 0:00:22]} 52. h6 {[%emt 0:00:13]} Rh2 {[%emt 0:00:04]} 53. Rc6 {[%emt 0:00:13]} Kf5 {[%emt 0:00:38]} 54. a4 {[%emt 0:00:27]} Nf6 {[%emt 0:00:13]} 55. a5 {[%emt 0:00:14]} Nd5 {[%emt 0:00:17]} 56. Bc5 {[%emt 0:00:37]} Nc3+ {[%emt 0:00:24]} 57. Kb3 {[%emt 0:00:14]} Nd1 {[%emt 0:00:31]} 58. Ba3 {[%emt 0:01:12]} Ke5 {[%emt 0:06:21]} 1-0

[Event "2nd Thailand Pattaya Open 2019"]
[Site "Pattaya"]
[Date "2019.10.25"]
[Round "3.6"]
[White "Salvador, Louie"]
[Black "Arunnuntapanich, Tinnakrit"]
[Result "1/2-1/2"]
[ECO "B90"]
[WhiteElo "2257"]
[BlackElo "2025"]
[Annotator "ChessBase"]
[PlyCount "122"]
[EventDate "2019.10.23"]
[EventType "swiss"]
[EventCountry "THA"]
[SourceTitle "playchess.com"]
[Source "ChessBase"]
[SourceQuality "1"]
[TimeControl "5400+30"]

1. e4 {[%emt 0:00:00]} c5 {[%emt 0:00:00]} 2. Nf3 {[%emt 0:00:00]} d6 {[%emt 0:00:00]} 3. d4 {[%emt 0:00:00]} cxd4 {[%emt 0:00:00]} 4. Nxd4 {[%emt 0:00:02]} Nf6 {[%emt 0:00:00]} 5. Nc3 {[%emt 0:00:22]} a6 {[%emt 0:00:00]} 6. f3 {[%emt 0:00:06]} e5 {[%emt 0:00:08]} 7. Nb3 {[%emt 0:00:05]} Be6 {[%emt 0:00:04]} 8. Be3 {[%emt 0:00:05]} b5 {[%emt 0:00:18]} 9. a4 {[%emt 0:04:15]} b4 {[%emt 0:02:59]} 10. Nd5 {[%emt 0:00:05]} Nxd5 {[%emt 0:03:07]} 11. exd5 {[%emt 0:01:12]} Bf5 {[%emt 0:00:12]} 12. a5 {[%emt 0:04:07]} Be7 {[%emt 0:02:05]} 13. Ra4 {[%emt 0:05:16]} Bh4+ {[%emt 0:15:10]} 14. g3 {[%emt 0:00:10]} Bg5 {[%emt 0:00:01]} 15. Bb6 {[%emt 0:00:14]} Qc8 16. Bd3 Bxd3 {[%emt 0:00:39]} 17. Qxd3 {[%emt 0:00:48]} Qh3 {[%emt 0:09:39]} 18. Rxb4 {[%emt 0:06:31]} Qg2 {[%emt 0:10:48]} 19. Rg1 {[%emt 0:00:22]} Qxh2 {[%emt 0:00:15]} 20. Qf5 {[%emt 0:08:09]} Nd7 {[%emt 0:00:16]} 21. Bf2 {[%emt 0:00:24]} h6 {[%emt 0:04:11]} 22. f4 {[%emt 0:09:00]} g6 {[%emt 0:28:36]} 23. Qe4 {[%emt 0:04:42]} f5 {[%emt 0:02:54]} 24. Qf3 {[%emt 0:00:02]} e4 {[%emt 0:06:52]} 25. Rxe4+ {[%emt 0:08:14]} fxe4 {[%emt 0:00:01]} 26. Qxe4+ {[%emt 0:00:01]} Kf7 {[%emt 0:03:28]} 27. Qe6+ {[%emt 0:05:16]} Kf8 {[%emt 0:00:12]} 28. Qxd6+ {[%emt 0:04:02]} Be7 {[%emt 0:05:27]} 29. Qxd7 {[%emt 0:00:06]} Re8 {[%emt 0:01:16]} 30. Kf1 {[%emt 0:00:47]} Bf6 {[%emt 0:01:14]} 31. Qg4 {[%emt 0:10:57]} Kf7 {[%emt 0:01:59]} 32. Nc5 {[%emt 0:14:36]} h5 {[%emt 0:00:33]} 33. Qf3 {[%emt 0:00:34]} Qh3+ {[%emt 0:00:18]} 34. Qg2 {[%emt 0:01:20]} Qg4 {[%emt 0:00:14]} 35. Ne6 {[%emt 0:02:15]} Rc8 {[%emt 0:03:26]} 36. c3 {[%emt 0:01:44]} Qd1+ {[%emt 0:00:18]} 37. Be1 {[%emt 0:00:02]} Qd3+ {[%emt 0:00:11]} 38. Kf2 {[%emt 0:02:58]} h4 {[%emt 0:00:24]} 39. Qf3 {[%emt 0:06:04]} hxg3+ {[%emt 0:00:06]} 40. Rxg3 {[%emt 0:00:07]} Rh2+ {[%emt 0:01:45]} 41. Kg1 {[%emt 0:02:50]} Qxf3 42. Rxf3 {[%emt 0:00:01]} Rxb2 43. f5 gxf5 44. Rxf5 Ke7 {[%emt 0:01:18]} 45. Rf3 {[%emt 0:03:05]} Kf7 {[%emt 0:00:22]} 46. Rf5 {[%emt 0:00:03]} Ke7 {[%emt 0:00:30]} 47. Kf1 {[%emt 0:00:54]} Bxc3 {[%emt 0:00:20]} 48. Bh4+ {[%emt 0:00:19]} Kd7 {[%emt 0:01:29]} 49. Bg3 {[%emt 0:00:52]} Ke7 {[%emt 0:00:47]} 50. Bh4+ {[%emt 0:01:07]} Kd7 {[%emt 0:00:11]} 51. Bg3 {[%emt 0:00:05]} Bb4 {[%emt 0:00:25]} 52. Rf7+ {[%emt 0:00:27]} Be7 {[%emt 0:00:43]} 53. Nc7 {[%emt 0:00:01]} Rh8 {[%emt 0:00:30]} 54. Bf2 {[%emt 0:01:05]} Rh2 {[%emt 0:00:36]} 55. Nxa6 {[%emt 0:00:19]} Ke8 {[%emt 0:00:18]} 56. Rf4 {[%emt 0:01:01]} Bg5 {[%emt 0:00:42]} 57. Nc7+ {[%emt 0:00:14]} Kd7 {[%emt 0:00:38]} 58. Rf7+ {[%emt 0:00:07]} Kc8 {[%emt 0:00:24]} 59. a6 {[%emt 0:01:21]} Rhxf2+ {[%emt 0:00:28]} 60. Rxf2 {[%emt 0:00:06]} Rxf2+ {[%emt 0:00:01]} 61. Kxf2 {[%emt 0:00:01]} Kxc7 {[%emt 0:00:27]} 1/2-1/2

[Event "2nd Thailand Pattaya Open 2019"]
[Site "Pattaya"]
[Date "2019.10.25"]
[Round "4.1"]
[White "Pascua, Haridas"]
[Black "Quizon, Daniel"]
[Result "1-0"]
[ECO "B50"]
[WhiteElo "2425"]
[BlackElo "2329"]
[Annotator "NA"]
[PlyCount "38"]
[EventDate "2019.10.23"]
[EventType "swiss"]
[EventCountry "THA"]
[SourceTitle "playchess.com"]
[Source "ChessBase"]
[SourceQuality "1"]
[TimeControl "5400+30"]

1. e4 {[%emt 0:00:00]} c5 {[%emt 0:00:59]} 2. Nf3 {[%emt 0:00:03]} d6 {[%emt 0:00:48]} 3. g3 {[%emt 0:00:39]} Nf6 {[%emt 0:02:07]} 4. Qe2 {[%emt 0:00:08]} (4. c3 Nc6 5. d3 g6 6. Bg2 Bg7 7. O-O O-O 8. Re1 e5 9. a3 h6 10. b4 b6 11. b5 Ne7 12. c4 a6 13. Nc3 Be6 14. Nd2 Qd7 15. Bb2 Bh3 16. Bh1 Ne8 17. a4 Nc7 {0-1 (34) Amin,B (2704)-Vachier Lagrave,M (2780) Abidjan 2019}) 4... Nc6 {[%emt 0:01:33]} 5. Bg2 {[%emt 0:00:12]} Bg4 {[%emt 0:01:10]} 6. c3 {[%emt 0:00:25] B50: Sicilian: 2...d6, Miscellaneous} g6 {[%emt 0:11:16]} 7. O-O {[%emt 0:02:33]} Qc8 $146 {[%emt 0:03:50]} ({Predecessor:} 7... Qd7 8. d3 Bg7 9. Be3 O-O 10. Re1 b5 11. Nbd2 Rab8 12. d4 cxd4 13. cxd4 {1-0 (42) Kuijf,H-Van Mil,J Eindhoven 1981}) 8. Na3 {[%emt 0:03:09]} Bg7 {[%emt 0:04:38]} 9. Re1 {[%emt 0:00:34]} O-O {[%emt 0:02:56]} 10. Qf1 {[%emt 0:02:03]} e5 {[%emt 0:08:45]} 11. Nc4 {[%emt 0:03:09]} Qc7 {[%emt 0:01:56]} 12. Ne3 {[%emt 0:12:26]} Bd7 {[%emt 0:06:15]} 13. Qe2 {[%emt 0:08:57]} Rfe8 {[%emt 0:01:08]} 14. d3 {[%emt 0:03:59]} Ne7 {[%emt 0:02:15]} 15. c4 {[%emt 0:04:09]} b5 {[%emt 0:00:18]} 16. b3 {[%emt 0:00:08]} a5 {[%emt 0:00:30]} 17. Bd2 {[%emt 0:04:05]} Reb8 {[%emt 0:06:58]} 18. Nd5 {[%emt 0:04:37]} Nfxd5 {[%emt 0:04:41]} 19. cxd5 {[%emt 0:00:07]} b4 $11 {[%emt 0:00:32]} 1-0

[Event "2nd Thailand Pattaya Open 2019"]
[Site "Pattaya"]
[Date "2019.10.25"]
[Round "4.2"]
[White "Villamayor, Buenaventura"]
[Black "Thet Naung"]
[Result "1-0"]
[ECO "A14"]
[WhiteElo "2371"]
[BlackElo "2271"]
[Annotator "NA"]
[PlyCount "131"]
[EventDate "2019.10.23"]
[EventType "swiss"]
[EventCountry "THA"]
[SourceTitle "playchess.com"]
[Source "ChessBase"]
[SourceQuality "1"]
[TimeControl "5400+30"]

1. c4 {[%emt 0:00:00]} e6 {[%emt 0:00:07]} 2. g3 {[%emt 0:00:43]} d5 {[%emt 0:00:31]} 3. Bg2 {[%emt 0:00:07]} Nf6 {[%emt 0:00:37]} 4. Nf3 {[%emt 0:00:07]} c6 {[%emt 0:00:45]} 5. b3 {[%emt 0:01:15]} Be7 {[%emt 0:00:48]} 6. O-O {[%emt 0:00:13]} O-O {[%emt 0:00:17]} 7. Bb2 {[%emt 0:00:17]} b6 {[%emt 0:00:38]} 8. Qc2 {[%emt 0:04:39] A14: English Opening: 1...e6 with b3 by White} (8. e3 b5 9. d3 a5 10. a3 Ba6 11. Nbd2 Nbd7 12. Qc2 Bd6 13. e4 Be7 14. Rfd1 Rc8 15. e5 Ne8 {½-½ (82) Edouard,R (2607)-Lenic,L (2650) Heraklio 2017}) 8... h6 {[%emt 0:02:32]} 9. Nc3 {[%emt 0:06:21]} Bb7 {[%emt 0:00:53]} 10. d4 {[%emt 0:00:59]} Nbd7 {[%emt 0:01:03]} 11. e4 {[%emt 0:00:45]} dxe4 {[%emt 0:19:21]} 12. Nxe4 {[%emt 0:01:32]} Nxe4 {[%emt 0:00:46]} 13. Qxe4 {[%emt 0:00:02]} Nf6 $146 {[%emt 0:00:20]} ({Predecessor:} 13... Qc7 14. Qe2 Rfe8 15. Rfd1 Rad8 16. Rd2 c5 17. Rad1 cxd4 18. Rxd4 {1-0 (55) Georgescu,T (2457)-Paraschiv,P (2255) Baile Govora 2017}) 14. Qe2 {[%emt 0:01:40]} c5 {[%emt 0:01:16]} 15. dxc5 {[%emt 0:02:22]} bxc5 {[%emt 0:03:37]} 16. Rfd1 {[%emt 0:01:32]} Qb6 {[%emt 0:00:31]} 17. Ne5 {[%emt 0:00:37]} Rad8 {[%emt 0:01:39]} 18. Ng4 {[%emt 0:05:09]} Bxg2 {[%emt 0:14:02]} 19. Kxg2 {[%emt 0:08:30]} Rxd1 {[%emt 0:02:04]} 20. Rxd1 {[%emt 0:00:30]} Rd8 {[%emt 0:00:36]} 21. Bxf6 {[%emt 0:04:01]} Bxf6 {[%emt 0:00:30]} 22. Nxf6+ {[%emt 0:00:44]} gxf6 {[%emt 0:00:07]} 23. Rxd8+ {[%emt 0:12:22]} Qxd8 {[%emt 0:00:22]} 24. Qe3 {[%emt 0:00:43]} Qf8 {[%emt 0:07:45]} 25. Qf4 {[%emt 0:01:15]} Qa8+ {[%emt 0:10:41]} 26. Kg1 {[%emt 0:05:47]} Kg7 {[%emt 0:00:42]} 27. Qc7 {[%emt 0:03:10]} Qe4 {[%emt 0:02:39]} 28. Qxc5 {[%emt 0:01:56]} Qb1+ {[%emt 0:00:09]} 29. Kg2 {[%emt 0:00:07]} Qxa2 {[%emt 0:00:03]} 30. b4 {[%emt 0:00:48]} Qb1 {[%emt 0:00:28]} 31. h4 {[%emt 0:01:30]} Qe4+ {[%emt 0:02:38]} 32. Kh2 {[%emt 0:00:59]} f5 {[%emt 0:00:13]} 33. Qxa7 {[%emt 0:11:22]} f4 {[%emt 0:00:40] [#]} ({Black should play} 33... Qxc4 $14 34. Qb6 h5) 34. Qa1+ $1 {[%emt 0:01:48]} e5 {[%emt 0:01:15] [#]} 35. Qb2 $16 {[%emt 0:01:19]} f5 {[%emt 0:07:14]} 36. b5 {[%emt 0:04:53]} fxg3+ {[%emt 0:01:42]} 37. fxg3 {[%emt 0:00:08]} f4 {[%emt 0:00:11]} 38. b6 {[%emt 0:01:11]} fxg3+ {[%emt 0:04:08]} 39. Kxg3 {[%emt 0:00:03]} Qe3+ {[%emt 0:01:18]} 40. Kh2 {[%emt 0:07:00]} Qf4+ {[%emt 0:00:35]} 41. Kg1 {[%emt 0:00:21]} Qe3+ {[%emt 0:00:40]} 42. Kf1 {[%emt 0:04:37]} Qf4+ {[%emt 0:00:24]} 43. Ke1 {[%emt 0:03:52]} Qxh4+ {[%emt 0:01:13]} 44. Qf2 {[%emt 0:01:55]} Qxc4 {[%emt 0:01:24]} 45. Qg2+ {[%emt 0:00:13]} Kh7 {[%emt 0:00:53]} 46. Qb7+ {[%emt 0:01:52]} Kg6 {[%emt 0:00:28]} 47. Qg2+ {[%emt 0:00:24]} Kh7 {[%emt 0:00:07]} 48. Qb7+ {[%emt 0:00:23]} Kg6 {[%emt 0:00:05]} 49. Qc7 {[%emt 0:00:10]} Qb4+ {[%emt 0:00:44]} 50. Ke2 {[%emt 0:00:17]} Qb2+ {[%emt 0:07:31]} 51. Kd3 {[%emt 0:00:03]} Qd4+ {[%emt 0:00:30]} 52. Kc2 {[%emt 0:00:01]} e4 {[%emt 0:01:06]} 53. Qc6+ {[%emt 0:00:54]} Kf5 {[%emt 0:00:22]} 54. Qb5+ {[%emt 0:00:30]} Ke6 {[%emt 0:01:46]} 55. b7 {[%emt 0:00:07]} Qf2+ {[%emt 0:00:14]} 56. Kb3 {[%emt 0:00:07]} Qe3+ {[%emt 0:00:33]} 57. Kb2 {[%emt 0:00:36]} Qd2+ {[%emt 0:00:41]} 58. Ka3 {[%emt 0:00:12]} Qc1+ 59. Ka4 {[%emt 0:00:30]} Qa1+ 60. Kb4 {[%emt 0:00:30]} Qe1+ 61. Kc5 {[%emt 0:00:30]} Qf2+ 62. Kc6 {[%emt 0:00:30]} Qc2+ 63. Kb6 {[%emt 0:00:30]} Qf2+ 64. Qc5 {[%emt 0:00:30]} Qb2+ 65. Kc6 {[%emt 0:00:30]} e3 66. Qd6+ {[%emt 0:00:30]} 1-0